[Event "Hungarian Rapid-ch 2022"]
[Site "Ajka"]
[Date "2022.07.15"]
[Round "1.19"]
[White "Meszaros, Tamas"]
[Black "Fellegi, Tibor"]
[Result "1-0"]
[ECO "B12"]
[WhiteElo "2368"]
[BlackElo "1909"]
[Annotator "ChessBase"]
[PlyCount "47"]
[EventDate "2022.07.15"]
[EventType "swiss"]
[EventCountry "HUN"]
[SourceTitle "playchess.com"]
[Source "ChessBase"]
[SourceQuality "1"]
[TimeControl "900+10"]

1. e4 {[%emt 0:00:36]} c6 {[%emt 0:00:32]} 2. d4 {[%emt 0:00:04]} b5 {[%emt 0:00:19]} 3. Nf3 {[%emt 0:02:03]} e6 {[%emt 0:00:17]} 4. d5 {[%emt 0:01:10]} Qc7 {[%emt 0:01:16]} 5. Bd3 {[%emt 0:01:33]} Nf6 {[%emt 0:00:49]} 6. Bg5 {[%emt 0:02:04]} Be7 {[%emt 0:01:13]} 7. dxe6 {[%emt 0:00:07]} dxe6 {[%emt 0:00:11]} 8. e5 {[%emt 0:00:05]} Nd5 {[%emt 0:00:07]} 9. Bxe7 {[%emt 0:00:04]} Qxe7 {[%emt 0:00:17]} 10. O-O {[%emt 0:00:22]} O-O {[%emt 0:00:04]} 11. Nbd2 {[%emt 0:01:30]} Nf4 {[%emt 0:00:49]} 12. Be4 {[%emt 0:00:18]} Bb7 {[%emt 0:00:02]} 13. c4 {[%emt 0:00:48]} Rd8 {[%emt 0:01:12]} 14. Qb3 {[%emt 0:01:37]} a6 {[%emt 0:00:36]} 15. Qe3 {[%emt 0:00:04]} Ng6 {[%emt 0:00:51]} 16. Bxg6 {[%emt 0:00:01]} fxg6 {[%emt 0:00:13]} 17. Ne4 {[%emt 0:00:30]} c5 {[%emt 0:01:08]} 18. Rfd1 {[%emt 0:02:33]} Nd7 {[%emt 0:00:19]} 19. Rd6 {[%emt 0:00:17]} Bxe4 {[%emt 0:01:38]} 20. Qxe4 {[%emt 0:00:01]} h6 {[%emt 0:01:03]} 21. Qxg6 {[%emt 0:00:47]} Nf8 {[%emt 0:00:01]} 22. Qe4 {[%emt 0:00:07]} Rxd6 {[%emt 0:00:25]} 23. exd6 {[%emt 0:00:01]} Qd7 {[%emt 0:00:02]} 24. Qxa8 {[%emt 0:00:02]} 1-0

[Event "Hungarian Rapid-ch 2022"]
[Site "Ajka"]
[Date "2022.07.15"]
[Round "1.20"]
[White "Csiszar, Viktoria"]
[Black "Csonka, Balazs"]
[Result "0-1"]
[ECO "B24"]
[WhiteElo "1911"]
[BlackElo "2495"]
[Annotator "ChessBase"]
[PlyCount "38"]
[EventDate "2022.07.15"]
[EventType "swiss"]
[EventCountry "HUN"]
[SourceTitle "playchess.com"]
[Source "ChessBase"]
[SourceQuality "1"]
[TimeControl "900+10"]

1. e4 {[%emt 0:00:16]} c5 {[%emt 0:00:37]} 2. Nc3 {[%emt 0:00:04]} Nc6 {[%emt 0:00:03]} 3. g3 {[%emt 0:00:03]} g6 {[%emt 0:00:06]} 4. Bg2 {[%emt 0:00:01]} Bg7 {[%emt 0:00:01]} 5. f4 {[%emt 0:00:14]} e6 {[%emt 0:00:12]} 6. d3 {[%emt 0:00:10]} Nge7 {[%emt 0:00:17]} 7. Nf3 {[%emt 0:00:05]} O-O {[%emt 0:00:14]} 8. O-O {[%emt 0:00:04]} d5 {[%emt 0:02:03]} 9. Qe1 {[%emt 0:04:25]} Nd4 {[%emt 0:01:24]} 10. Nxd4 {[%emt 0:00:49]} cxd4 {[%emt 0:00:05]} 11. Ne2 {[%emt 0:00:30]} dxe4 {[%emt 0:01:08]} 12. dxe4 {[%emt 0:02:08]} e5 {[%emt 0:00:20]} 13. fxe5 {[%emt 0:01:09]} Nc6 {[%emt 0:00:45]} 14. Bf4 {[%emt 0:01:16]} Qb6 {[%emt 0:01:51]} 15. Kh1 {[%emt 0:00:08]} Qxb2 {[%emt 0:01:03]} 16. Qd2 {[%emt 0:01:09]} Nxe5 {[%emt 0:01:01]} 17. Rab1 {[%emt 0:03:34]} Qxa2 {[%emt 0:02:17]} 18. Nxd4 {[%emt 0:00:15]} Rd8 {[%emt 0:01:13]} 19. Qf2 {[%emt 0:00:42]} Ng4 {[%emt 0:00:16]} 0-1

[Event "Hungarian Rapid-ch 2022"]
[Site "Ajka"]
[Date "2022.07.15"]
[Round "1.21"]
[White "Jakab, Attila"]
[Black "Szalay-Ocsak, Bank"]
[Result "1-0"]
[ECO "E59"]
[WhiteElo "2311"]
[BlackElo "2146"]
[Annotator "ChessBase"]
[PlyCount "68"]
[EventDate "2022.07.15"]
[EventType "swiss"]
[EventCountry "HUN"]
[SourceTitle "playchess.com"]
[Source "ChessBase"]
[SourceQuality "1"]
[TimeControl "900+10"]

1. d4 {[%emt 0:00:13]} Nf6 {[%emt 0:00:10]} 2. c4 {[%emt 0:00:03]} e6 {[%emt 0:00:02]} 3. Nc3 {[%emt 0:00:03]} Bb4 {[%emt 0:00:01]} 4. e3 {[%emt 0:00:03]} O-O {[%emt 0:00:15]} 5. Bd3 {[%emt 0:00:03]} d5 {[%emt 0:00:10]} 6. Nf3 {[%emt 0:00:04]} c5 {[%emt 0:00:06]} 7. O-O {[%emt 0:00:04]} dxc4 {[%emt 0:00:18]} 8. Bxc4 {[%emt 0:00:03]} Nc6 {[%emt 0:00:03]} 9. a3 {[%emt 0:00:05]} Bxc3 {[%emt 0:00:02]} 10. bxc3 {[%emt 0:00:02]} Qc7 {[%emt 0:00:04]} 11. Ba2 {[%emt 0:00:05]} b6 {[%emt 0:01:15]} 12. Re1 {[%emt 0:00:10]} e5 {[%emt 0:03:19]} 13. h3 {[%emt 0:00:10]} Ba6 {[%emt 0:01:08]} 14. d5 {[%emt 0:00:12]} Rad8 {[%emt 0:01:02]} 15. e4 {[%emt 0:00:06]} Ne7 {[%emt 0:01:06]} 16. Bg5 {[%emt 0:00:21]} Ng6 {[%emt 0:00:39]} 17. Bxf6 {[%emt 0:00:10]} gxf6 {[%emt 0:00:02]} 18. g3 {[%emt 0:00:07]} Bc8 {[%emt 0:00:24]} 19. Qd2 {[%emt 0:00:19]} Kg7 {[%emt 0:01:19]} 20. Kh2 {[%emt 0:00:03]} Qd7 {[%emt 0:00:26]} 21. Ng1 {[%emt 0:00:10]} h5 {[%emt 0:00:55]} 22. h4 {[%emt 0:00:12]} Rg8 {[%emt 0:00:56]} 23. Re3 {[%emt 0:00:17]} Qg4 {[%emt 0:00:58]} 24. f3 {[%emt 0:00:51]} Qd7 {[%emt 0:00:01]} 25. Rf1 {[%emt 0:00:06]} Kh7 {[%emt 0:01:09]} 26. c4 {[%emt 0:00:26]} Rg7 {[%emt 0:00:26]} 27. Bb1 {[%emt 0:00:11]} Rdg8 {[%emt 0:00:15]} 28. Bd3 {[%emt 0:00:24]} Nxh4 {[%emt 0:01:13]} 29. f4 {[%emt 0:00:38]} Qg4 {[%emt 0:02:02]} 30. f5 {[%emt 0:00:33]} Kh8 {[%emt 0:00:12]} 31. Qf2 {[%emt 0:00:07]} b5 {[%emt 0:00:11]} 32. Be2 {[%emt 0:00:16]} Qg5 {[%emt 0:00:10]} 33. Nh3 {[%emt 0:00:06]} Nf3+ {[%emt 0:00:09]} 34. Qxf3 {[%emt 0:00:10]} h4 1-0

[Event "Hungarian Rapid-ch 2022"]
[Site "Ajka"]
[Date "2022.07.15"]
[Round "1.22"]
[White "Kariko, Lajos"]
[Black "Lizak, Peter"]
[Result "0-1"]
[ECO "C00"]
[WhiteElo "1888"]
[BlackElo "2400"]
[Annotator "ChessBase"]
[PlyCount "60"]
[EventDate "2022.07.15"]
[EventType "swiss"]
[EventCountry "HUN"]
[SourceTitle "playchess.com"]
[Source "ChessBase"]
[SourceQuality "1"]
[TimeControl "900+10"]

1. e4 {[%emt 0:00:20]} e6 {[%emt 0:00:21]} 2. e5 {[%emt 0:00:08]} d5 {[%emt 0:00:09]} 3. exd6 {[%emt 0:00:02]} cxd6 {[%emt 0:00:07]} 4. d4 {[%emt 0:00:04]} Nf6 {[%emt 0:00:06]} 5. Nf3 {[%emt 0:00:11]} Be7 {[%emt 0:00:09]} 6. g3 {[%emt 0:00:12]} Nc6 {[%emt 0:00:16]} 7. Bg2 {[%emt 0:00:14]} Qa5+ {[%emt 0:00:18]} 8. c3 {[%emt 0:00:42]} Qa6 {[%emt 0:00:03]} 9. Qe2 {[%emt 0:00:37]} Qxe2+ {[%emt 0:00:07]} 10. Kxe2 {[%emt 0:00:02]} e5 {[%emt 0:00:23]} 11. dxe5 {[%emt 0:00:33]} dxe5 {[%emt 0:00:03]} 12. Be3 {[%emt 0:01:16]} Ng4 {[%emt 0:01:00]} 13. Bg5 {[%emt 0:00:57]} e4 {[%emt 0:00:44]} 14. Bxe7 {[%emt 0:00:20]} exf3+ {[%emt 0:00:03]} 15. Bxf3 {[%emt 0:00:13]} Kxe7 {[%emt 0:00:03]} 16. Re1 {[%emt 0:00:25]} Rd8 {[%emt 0:01:13]} 17. Nd2 {[%emt 0:01:13]} Nge5 {[%emt 0:00:27]} 18. Rad1 {[%emt 0:01:53]} Be6 {[%emt 0:00:14]} 19. Bg2 {[%emt 0:01:10]} Rd7 {[%emt 0:01:47]} 20. f4 {[%emt 0:01:58]} Nd3 {[%emt 0:00:48]} 21. Rf1 {[%emt 0:01:21]} Nxb2 {[%emt 0:00:05]} 22. Rb1 {[%emt 0:00:22]} Nc4 {[%emt 0:00:34]} 23. Rfd1 {[%emt 0:01:07]} Nxd2 {[%emt 0:00:20]} 24. Rxd2 {[%emt 0:00:04]} Rxd2+ {[%emt 0:00:05]} 25. Kxd2 {[%emt 0:00:04]} Rd8+ {[%emt 0:00:02]} 26. Ke3 {[%emt 0:00:14]} Na5 {[%emt 0:00:02]} 27. Bxb7 {[%emt 0:00:51]} Nc4+ {[%emt 0:00:02]} 28. Kf2 {[%emt 0:00:34]} Rd2+ {[%emt 0:00:02]} 29. Ke1 {[%emt 0:00:11]} Rxh2 {[%emt 0:00:10]} 30. a4 {[%emt 0:00:48]} Nb2 {[%emt 0:00:44]} 0-1

[Event "Hungarian Rapid-ch 2022"]
[Site "Ajka"]
[Date "2022.07.15"]
[Round "1.23"]
[White "Tolnai, Tibor"]
[Black "Giang, Tran Nam"]
[Result "0-1"]
[ECO "D02"]
[WhiteElo "2433"]
[BlackElo "2144"]
[Annotator "ChessBase"]
[PlyCount "90"]
[EventDate "2022.07.15"]
[EventType "swiss"]
[EventCountry "HUN"]
[SourceTitle "playchess.com"]
[Source "ChessBase"]
[SourceQuality "1"]
[TimeControl "900+10"]

1. d4 {[%emt 0:01:18]} d5 {[%emt 0:00:10]} 2. Nf3 {[%emt 0:00:04]} Nf6 {[%emt 0:00:01]} 3. g3 {[%emt 0:00:03]} c6 {[%emt 0:00:02]} 4. Bg2 {[%emt 0:00:02]} Bf5 {[%emt 0:00:00]} 5. O-O e6 6. b3 {[%emt 0:00:11]} Be7 {[%emt 0:00:04]} 7. Bb2 {[%emt 0:00:01]} Nbd7 {[%emt 0:00:03]} 8. Nbd2 {[%emt 0:00:03]} h6 {[%emt 0:00:01]} 9. c4 {[%emt 0:00:04]} O-O {[%emt 0:00:05]} 10. Re1 {[%emt 0:00:01]} a5 {[%emt 0:00:09]} 11. a3 {[%emt 0:00:03]} Ne4 {[%emt 0:00:48]} 12. e3 {[%emt 0:00:11]} Ndf6 {[%emt 0:00:32]} 13. Rc1 {[%emt 0:00:15]} Rc8 {[%emt 0:00:32]} 14. Ne5 {[%emt 0:00:30]} Nxd2 {[%emt 0:01:01]} 15. Qxd2 {[%emt 0:00:02]} Nd7 {[%emt 0:00:49]} 16. Nd3 {[%emt 0:00:48]} Qb6 {[%emt 0:00:38]} 17. Qd1 {[%emt 0:00:20]} Rfd8 {[%emt 0:00:40]} 18. c5 {[%emt 0:00:30]} Qa6 {[%emt 0:00:40]} 19. Bf1 {[%emt 0:00:04]} Qa7 {[%emt 0:00:15]} 20. Bc3 {[%emt 0:00:03]} b6 {[%emt 0:00:50]} 21. cxb6 {[%emt 0:00:26]} Qxb6 {[%emt 0:00:26]} 22. b4 {[%emt 0:00:09]} axb4 {[%emt 0:00:20]} 23. Bxb4 {[%emt 0:00:06]} Bxb4 {[%emt 0:00:19]} 24. Nxb4 {[%emt 0:00:02]} c5 {[%emt 0:00:16]} 25. dxc5 {[%emt 0:00:04]} Nxc5 {[%emt 0:00:20]} 26. Ra1 {[%emt 0:00:58]} Ne4 {[%emt 0:01:07]} 27. Qd4 {[%emt 0:00:41]} Qa5 {[%emt 0:00:47]} 28. f3 {[%emt 0:00:44]} Nc5 {[%emt 0:01:39]} 29. Qd1 {[%emt 0:01:26]} Na4 {[%emt 0:00:56]} 30. Rc1 {[%emt 0:00:19]} Nc3 {[%emt 0:01:12]} 31. Qb3 {[%emt 0:00:10]} Qc5 {[%emt 0:01:25]} 32. g4 {[%emt 0:00:57]} Bg6 {[%emt 0:00:18]} 33. Bd3 {[%emt 0:02:10]} d4 {[%emt 0:01:36]} 34. e4 {[%emt 0:00:35]} h5 {[%emt 0:00:48]} 35. e5 {[%emt 0:01:03]} hxg4 {[%emt 0:00:39]} 36. fxg4 {[%emt 0:00:03]} Bxd3 {[%emt 0:00:18]} 37. Nxd3 {[%emt 0:00:02]} Qc6 {[%emt 0:00:07]} 38. Qb2 {[%emt 0:02:26]} Qf3 {[%emt 0:00:22]} 39. Qd2 {[%emt 0:00:09]} Qxg4+ {[%emt 0:00:15]} 40. Qg2 {[%emt 0:00:01]} Qxg2+ {[%emt 0:00:21]} 41. Kxg2 {[%emt 0:00:02]} Ra8 {[%emt 0:00:05]} 42. Ra1 {[%emt 0:00:04]} Ra5 {[%emt 0:00:07]} 43. Nb4 {[%emt 0:00:18]} Rc5 {[%emt 0:00:24]} 44. Nd3 {[%emt 0:00:05]} Rb5 {[%emt 0:00:04]} 45. Kf3 {[%emt 0:00:20]} Ra8 {[%emt 0:00:06]} 0-1

[Event "Hungarian Rapid-ch 2022"]
[Site "Ajka"]
[Date "2022.07.15"]
[Round "1.24"]
[White "Biro, Zsolt"]
[Black "Csiszar, Csaba"]
[Result "0-1"]
[ECO "B30"]
[WhiteElo "1928"]
[BlackElo "2389"]
[Annotator "ChessBase"]
[PlyCount "54"]
[EventDate "2022.07.15"]
[EventType "swiss"]
[EventCountry "HUN"]
[SourceTitle "playchess.com"]
[Source "ChessBase"]
[SourceQuality "1"]
[TimeControl "900+10"]

1. e4 {[%emt 0:00:13]} c5 {[%emt 0:00:12]} 2. Nf3 {[%emt 0:00:02]} Nc6 {[%emt 0:00:01]} 3. Bb5 {[%emt 0:00:03]} d6 {[%emt 0:00:01]} 4. O-O {[%emt 0:00:04]} Bd7 {[%emt 0:00:01]} 5. Re1 {[%emt 0:00:12]} Nf6 {[%emt 0:00:01]} 6. d3 {[%emt 0:01:08]} g6 {[%emt 0:00:08]} 7. h3 {[%emt 0:00:21]} Bg7 {[%emt 0:00:02]} 8. Be3 {[%emt 0:00:02]} O-O {[%emt 0:00:02]} 9. a4 {[%emt 0:00:47]} a6 {[%emt 0:00:11]} 10. Bxc6 {[%emt 0:00:02]} Bxc6 {[%emt 0:00:01]} 11. a5 {[%emt 0:00:07]} Nd7 {[%emt 0:01:22]} 12. c3 {[%emt 0:00:21]} e6 {[%emt 0:00:11]} 13. Bf4 {[%emt 0:00:48]} e5 {[%emt 0:00:48]} 14. Be3 {[%emt 0:02:07]} d5 {[%emt 0:00:07]} 15. Nbd2 {[%emt 0:00:15]} h6 {[%emt 0:01:33]} 16. d4 {[%emt 0:06:06]} exd4 {[%emt 0:00:20]} 17. cxd4 {[%emt 0:00:14]} dxe4 {[%emt 0:00:12]} 18. Ne5 {[%emt 0:00:03]} cxd4 {[%emt 0:00:23]} 19. Nxc6 {[%emt 0:00:48]} bxc6 {[%emt 0:00:02]} 20. Bf4 {[%emt 0:00:16]} f5 {[%emt 0:00:08]} 21. Qb3+ {[%emt 0:00:04]} Kh7 {[%emt 0:00:05]} 22. Rec1 {[%emt 0:00:16]} c5 {[%emt 0:01:11]} 23. Nc4 {[%emt 0:00:26]} d3 {[%emt 0:01:14]} 24. Qb7 {[%emt 0:00:22]} Qc8 {[%emt 0:00:32]} 25. Qb3 {[%emt 0:00:51]} Qc6 {[%emt 0:00:38]} 26. h4 {[%emt 0:00:50]} Ra7 {[%emt 0:02:01]} 27. Nb6 {[%emt 0:00:31]} Qf6 {[%emt 0:02:12]} 0-1

[Event "Hungarian Rapid-ch 2022"]
[Site "Ajka"]
[Date "2022.07.15"]
[Round "1.25"]
[White "Papp, Levente"]
[Black "Bujna, Peter"]
[Result "1-0"]
[ECO "A13"]
[WhiteElo "2394"]
[BlackElo "1780"]
[Annotator "ChessBase"]
[PlyCount "37"]
[EventDate "2022.07.15"]
[EventType "swiss"]
[EventCountry "HUN"]
[SourceTitle "playchess.com"]
[Source "ChessBase"]
[SourceQuality "1"]
[TimeControl "900+10"]

1. c4 {[%emt 0:00:13]} e6 {[%emt 0:00:13]} 2. Nf3 {[%emt 0:00:05]} d5 {[%emt 0:00:04]} 3. g3 {[%emt 0:00:03]} Nf6 {[%emt 0:00:05]} 4. Bg2 {[%emt 0:00:02]} c6 {[%emt 0:00:12]} 5. cxd5 {[%emt 0:00:32]} exd5 {[%emt 0:00:07]} 6. O-O {[%emt 0:00:03]} Bd6 {[%emt 0:00:27]} 7. d3 {[%emt 0:00:12]} O-O {[%emt 0:00:19]} 8. Nc3 {[%emt 0:00:07]} Bf5 {[%emt 0:00:12]} 9. Qb3 {[%emt 0:00:45]} Qc7 {[%emt 0:00:15]} 10. Nd4 {[%emt 0:01:33]} Bg6 {[%emt 0:00:40]} 11. Bg5 {[%emt 0:00:36]} Nbd7 {[%emt 0:00:22]} 12. Rac1 {[%emt 0:00:04]} a6 {[%emt 0:01:18]} 13. e4 {[%emt 0:02:16]} dxe4 {[%emt 0:01:19]} 14. dxe4 {[%emt 0:00:17]} Be5 {[%emt 0:00:46]} 15. Nf5 {[%emt 0:01:05]} Nc5 {[%emt 0:00:37]} 16. Qc4 {[%emt 0:00:53]} Bxc3 {[%emt 0:00:45]} 17. Qxc3 {[%emt 0:00:22]} Ncxe4 {[%emt 0:00:23]} 18. Bxe4 {[%emt 0:00:03]} Nxe4 {[%emt 0:00:02]} 19. Qxg7# {[%emt 0:00:02]} 1-0

[Event "Hungarian Rapid-ch 2022"]
[Site "Ajka"]
[Date "2022.07.15"]
[Round "1.26"]
[White "Matyi, Attila"]
[Black "Hoang, Thanh Trang"]
[Result "0-1"]
[ECO "A80"]
[WhiteElo "1875"]
[BlackElo "2376"]
[Annotator "ChessBase"]
[PlyCount "54"]
[EventDate "2022.07.15"]
[EventType "swiss"]
[EventCountry "HUN"]
[SourceTitle "playchess.com"]
[Source "ChessBase"]
[SourceQuality "1"]
[TimeControl "900+10"]

1. d4 {[%emt 0:00:19]} f5 {[%emt 0:00:19]} 2. Nc3 {[%emt 0:00:06]} Nf6 {[%emt 0:00:11]} 3. Bg5 {[%emt 0:00:03]} d5 {[%emt 0:00:22]} 4. f3 {[%emt 0:01:27]} g6 {[%emt 0:01:45]} 5. Bxf6 {[%emt 0:01:05]} exf6 {[%emt 0:00:03]} 6. e4 {[%emt 0:00:07]} fxe4 {[%emt 0:00:35]} 7. fxe4 {[%emt 0:00:02]} dxe4 {[%emt 0:00:08]} 8. Nxe4 {[%emt 0:00:09]} Bg7 {[%emt 0:00:32]} 9. Nf3 {[%emt 0:02:23]} Qe7 {[%emt 0:02:20]} 10. Qe2 {[%emt 0:00:26]} O-O {[%emt 0:01:27]} 11. O-O-O {[%emt 0:00:41]} Nc6 {[%emt 0:00:16]} 12. Nc5 {[%emt 0:01:39]} Kh8 {[%emt 0:02:34]} 13. Qc4 {[%emt 0:01:44]} Qd6 {[%emt 0:00:16]} 14. Kb1 {[%emt 0:00:55]} Rb8 {[%emt 0:00:41]} 15. Ne4 {[%emt 0:00:23]} Qf4 {[%emt 0:00:10]} 16. Bd3 {[%emt 0:00:15]} Bg4 {[%emt 0:02:02]} 17. Rdf1 {[%emt 0:00:10]} Qh6 {[%emt 0:00:50]} 18. h3 {[%emt 0:01:04]} Bxf3 {[%emt 0:00:05]} 19. Rxf3 {[%emt 0:01:05]} f5 {[%emt 0:00:03]} 20. Nc5 {[%emt 0:00:09]} Nxd4 {[%emt 0:00:03]} 21. Nd7 {[%emt 0:00:30]} Nxf3 {[%emt 0:00:31]} 22. gxf3 {[%emt 0:00:15]} c6 {[%emt 0:00:18]} 23. h4 {[%emt 0:01:05]} Qe3 {[%emt 0:00:50]} 24. Rf1 {[%emt 0:01:42]} Rfe8 {[%emt 0:00:10]} 25. a3 {[%emt 0:00:17]} Rbd8 {[%emt 0:00:03]} 26. Nc5 {[%emt 0:00:16]} b5 {[%emt 0:00:05]} 27. Qb4 {[%emt 0:00:34]} a5 {[%emt 0:00:04]} 0-1

[Event "Hungarian Rapid-ch 2022"]
[Site "Ajka"]
[Date "2022.07.15"]
[Round "1.27"]
[White "Straubinger, Daniel"]
[Black "Vicze, Kata"]
[Result "1-0"]
[ECO "B30"]
[WhiteElo "2349"]
[BlackElo "1786"]
[Annotator "ChessBase"]
[PlyCount "81"]
[EventDate "2022.07.15"]
[EventType "swiss"]
[EventCountry "HUN"]
[SourceTitle "playchess.com"]
[Source "ChessBase"]
[SourceQuality "1"]
[TimeControl "900+10"]

1. e4 {[%emt 0:00:20]} c5 {[%emt 0:00:11]} 2. Nf3 {[%emt 0:00:02]} Nc6 {[%emt 0:00:02]} 3. Bb5 {[%emt 0:00:01]} e6 {[%emt 0:00:02]} 4. O-O {[%emt 0:00:04]} Nge7 {[%emt 0:00:02]} 5. Re1 {[%emt 0:00:23]} a6 {[%emt 0:00:04]} 6. Bf1 {[%emt 0:00:03]} d5 {[%emt 0:00:02]} 7. exd5 {[%emt 0:00:37]} Nxd5 {[%emt 0:00:03]} 8. d3 {[%emt 0:00:24]} Bd6 {[%emt 0:00:30]} 9. Nbd2 {[%emt 0:00:07]} O-O {[%emt 0:00:13]} 10. a4 {[%emt 0:00:52]} Rb8 {[%emt 0:00:33]} 11. g3 {[%emt 0:00:19]} f5 {[%emt 0:00:23]} 12. Bg2 {[%emt 0:00:20]} Qf6 {[%emt 0:00:52]} 13. Nc4 {[%emt 0:01:55]} Bc7 {[%emt 0:00:24]} 14. Bg5 {[%emt 0:00:11]} Qg6 {[%emt 0:00:21]} 15. Bd2 {[%emt 0:00:46]} f4 {[%emt 0:00:28]} 16. Nce5 {[%emt 0:01:28]} Nxe5 {[%emt 0:00:57]} 17. Nxe5 {[%emt 0:00:04]} Bxe5 {[%emt 0:00:37]} 18. Rxe5 {[%emt 0:00:08]} fxg3 {[%emt 0:00:12]} 19. fxg3 {[%emt 0:00:23]} Nf6 {[%emt 0:01:38]} 20. Rxc5 {[%emt 0:01:06]} Ng4 {[%emt 0:00:13]} 21. Rg5 {[%emt 0:00:42]} Nf2 {[%emt 0:00:19]} 22. Rxg6 {[%emt 0:00:52]} Nxd1 {[%emt 0:00:04]} 23. Rg5 {[%emt 0:00:11]} h6 {[%emt 0:01:01]} 24. Rc5 {[%emt 0:02:43]} Nf2 {[%emt 0:00:47]} 25. Bf4 {[%emt 0:00:12]} Ra8 {[%emt 0:00:37]} 26. Kxf2 {[%emt 0:00:09]} g5 {[%emt 0:00:03]} 27. Ke3 {[%emt 0:00:02]} gxf4+ {[%emt 0:00:14]} 28. gxf4 {[%emt 0:00:02]} b6 {[%emt 0:00:26]} 29. Rc7 {[%emt 0:00:07]} Rb8 {[%emt 0:00:06]} 30. Be4 {[%emt 0:00:10]} Rf7 {[%emt 0:00:17]} 31. Rg1+ {[%emt 0:00:02]} Kf8 {[%emt 0:00:02]} 32. Rxf7+ {[%emt 0:00:07]} Kxf7 {[%emt 0:00:02]} 33. Rg6 {[%emt 0:00:03]} Bd7 {[%emt 0:00:23]} 34. b3 {[%emt 0:00:08]} Rh8 {[%emt 0:00:10]} 35. Kd4 {[%emt 0:00:09]} Bc6 {[%emt 0:00:29]} 36. Rg2 {[%emt 0:00:11]} Bxe4 {[%emt 0:00:08]} 37. Kxe4 {[%emt 0:00:07]} Kf6 {[%emt 0:00:03]} 38. h4 {[%emt 0:00:08]} Rc8 {[%emt 0:00:20]} 39. c4 {[%emt 0:00:18]} b5 {[%emt 0:00:16]} 40. axb5 {[%emt 0:00:08]} axb5 {[%emt 0:00:02]} 41. h5 {[%emt 0:00:01]} 1-0

[Event "Hungarian Rapid-ch 2022"]
[Site "Ajka"]
[Date "2022.07.15"]
[Round "1.28"]
[White "Gyenes, Mate"]
[Black "Emodi, Barnabas"]
[Result "0-1"]
[ECO "B20"]
[WhiteElo "2048"]
[BlackElo "2341"]
[Annotator "ChessBase"]
[PlyCount "67"]
[EventDate "2022.07.15"]
[EventType "swiss"]
[EventCountry "HUN"]
[SourceTitle "playchess.com"]
[Source "ChessBase"]
[SourceQuality "1"]
[TimeControl "900+10"]

1. e4 {[%emt 0:00:12]} c5 {[%emt 0:00:13]} 2. g3 {[%emt 0:00:01]} e6 {[%emt 0:00:09]} 3. Bg2 {[%emt 0:00:01]} d5 {[%emt 0:00:02]} 4. exd5 {[%emt 0:00:02]} exd5 {[%emt 0:00:02]} 5. d4 {[%emt 0:00:01]} Nf6 {[%emt 0:00:07]} 6. Ne2 {[%emt 0:00:02]} Nc6 {[%emt 0:00:08]} 7. O-O {[%emt 0:00:04]} cxd4 {[%emt 0:00:04]} 8. Nxd4 {[%emt 0:00:02]} Be7 {[%emt 0:00:03]} 9. h3 {[%emt 0:00:21]} O-O {[%emt 0:00:06]} 10. Be3 {[%emt 0:00:07]} Be6 {[%emt 0:00:35]} 11. Nd2 {[%emt 0:00:20]} Qd7 {[%emt 0:00:19]} 12. N2b3 {[%emt 0:00:05]} Bxh3 {[%emt 0:00:24]} 13. Re1 {[%emt 0:00:37]} Bxg2 {[%emt 0:00:15]} 14. Kxg2 {[%emt 0:00:02]} Rfe8 {[%emt 0:00:22]} 15. c3 {[%emt 0:01:39]} Ne5 {[%emt 0:01:23]} 16. Qc2 {[%emt 0:00:29]} Nc4 {[%emt 0:01:02]} 17. Bg5 {[%emt 0:02:21]} Ne4 {[%emt 0:01:02]} 18. Bxe7 {[%emt 0:00:29]} Rxe7 {[%emt 0:00:02]} 19. Re2 {[%emt 0:00:35]} Rae8 {[%emt 0:00:38]} 20. Rae1 {[%emt 0:00:13]} b6 {[%emt 0:00:41]} 21. f3 {[%emt 0:04:03]} Nf6 {[%emt 0:03:24]} 22. Rxe7 {[%emt 0:00:41]} Rxe7 {[%emt 0:00:03]} 23. Rxe7 {[%emt 0:00:06]} Qxe7 {[%emt 0:00:02]} 24. Nf5 {[%emt 0:00:18]} Qe5 {[%emt 0:00:19]} 25. Nbd4 {[%emt 0:02:18]} g6 {[%emt 0:00:56]} 26. Nc6 {[%emt 0:00:01]} gxf5 {[%emt 0:00:36]} 27. Nxe5 {[%emt 0:01:16]} Ne3+ {[%emt 0:00:05]} 28. Kf2 {[%emt 0:00:01]} Nxc2 {[%emt 0:00:02]} 29. Ke2 {[%emt 0:00:01]} d4 {[%emt 0:00:18]} 30. Kd2 {[%emt 0:00:05]} Ne3 {[%emt 0:00:07]} 31. cxd4 {[%emt 0:00:06]} Nf1+ {[%emt 0:00:03]} 32. Kd3 {[%emt 0:00:03]} Nxg3 {[%emt 0:00:04]} 33. Nc6 {[%emt 0:00:01]} h5 {[%emt 0:01:13]} 34. Nxa7 0-1

[Event "Hungarian Rapid-ch 2022"]
[Site "Ajka"]
[Date "2022.07.15"]
[Round "1.29"]
[White "Leviczky, Tibor"]
[Black "Szikszai, Bertalan"]
[Result "1-0"]
[ECO "B38"]
[WhiteElo "2281"]
[BlackElo "2153"]
[Annotator "ChessBase"]
[PlyCount "61"]
[EventDate "2022.07.15"]
[EventType "swiss"]
[EventCountry "HUN"]
[SourceTitle "playchess.com"]
[Source "ChessBase"]
[SourceQuality "1"]
[TimeControl "900+10"]

1. Nf3 {[%emt 0:02:23]} c5 {[%emt 0:00:13]} 2. c4 {[%emt 0:00:03]} Nc6 {[%emt 0:00:03]} 3. d4 {[%emt 0:00:01]} cxd4 {[%emt 0:00:02]} 4. Nxd4 {[%emt 0:00:02]} g6 {[%emt 0:00:36]} 5. e4 {[%emt 0:00:04]} Bg7 {[%emt 0:00:02]} 6. Be3 {[%emt 0:00:01]} d6 {[%emt 0:00:04]} 7. Nc3 {[%emt 0:00:04]} Nf6 {[%emt 0:00:11]} 8. Be2 {[%emt 0:00:01]} O-O {[%emt 0:00:03]} 9. O-O {[%emt 0:00:03]} Bd7 {[%emt 0:01:43]} 10. Qd2 {[%emt 0:00:02]} Re8 {[%emt 0:02:08]} 11. f3 {[%emt 0:00:16]} Rc8 {[%emt 0:00:28]} 12. Rac1 {[%emt 0:01:16]} a6 {[%emt 0:01:16]} 13. Rfd1 {[%emt 0:00:22]} Ne5 {[%emt 0:00:22]} 14. Nd5 {[%emt 0:00:40]} Nxd5 {[%emt 0:01:47]} 15. exd5 {[%emt 0:00:06]} Rb8 {[%emt 0:02:48]} 16. b4 {[%emt 0:01:52]} h5 {[%emt 0:01:46]} 17. h3 {[%emt 0:00:39]} Ba4 {[%emt 0:00:03]} 18. Re1 {[%emt 0:01:25]} Nd7 {[%emt 0:01:09]} 19. f4 {[%emt 0:00:31]} Nf6 {[%emt 0:00:18]} 20. f5 {[%emt 0:01:14]} gxf5 {[%emt 0:02:14]} 21. Nxf5 {[%emt 0:00:08]} Bd7 {[%emt 0:00:34]} 22. Nxg7 {[%emt 0:00:07]} Kxg7 {[%emt 0:00:02]} 23. Bd4 {[%emt 0:00:50]} Rg8 {[%emt 0:00:36]} 24. Bxh5 {[%emt 0:01:56]} Rh8 {[%emt 0:00:23]} 25. Bf3 {[%emt 0:00:25]} Bf5 {[%emt 0:00:13]} 26. Re2 {[%emt 0:01:37]} Bg6 {[%emt 0:00:13]} 27. Rce1 {[%emt 0:00:06]} Re8 {[%emt 0:00:12]} 28. Qf4 {[%emt 0:00:34]} Qd7 {[%emt 0:00:10]} 29. Rxe7 {[%emt 0:00:33]} Rxe7 {[%emt 0:00:06]} 30. Qxf6+ {[%emt 0:00:06]} Kh6 {[%emt 0:00:08]} 31. Qh4+ {[%emt 0:00:20]} 1-0